[Event "*** Qualifier 3: Titled Tuesday 3|2 Blitz"]
[Site "Chess.com"]
[Date "2017.04.18"]
[Round "2"]
[White "LuckyTiger"]
[Black "Cryptochess"]
[Result "0-1"]
[WhiteElo "2593"]
[BlackElo "2458"]
[TimeControl "180+2"]
[EndTime "13:23:22 PDT"]
[Termination "Cryptochess won by resignation"]

1. e4 {[%clk 0:03:00.6]} 1... d6 {[%clk 0:02:59.4]} 2. d4 {[%clk 0:03:01.1]}
2... Nf6 {[%clk 0:03:01.1]} 3. Nc3 {[%clk 0:03:02.6]} 3... g6 {[%clk 0:03:02.7]}
4. Nf3 {[%clk 0:02:55.4]} 4... Bg7 {[%clk 0:03:03.6]} 5. h3 {[%clk 0:02:54.6]}
5... O-O {[%clk 0:03:04.5]} 6. Be3 {[%clk 0:02:55.3]} 6... a6 {[%clk 0:03:05.6]}
7. a4 {[%clk 0:02:52.1]} 7... b6 {[%clk 0:03:07.1]} 8. Bd3 {[%clk 0:02:52.1]}
8... Bb7 {[%clk 0:03:08.3]} 9. Qd2 {[%clk 0:02:53.2]} 9... Nc6 {[%clk 0:03:07]}
10. Ne2 {[%clk 0:02:46.5]} 10... e6 {[%clk 0:03:01.5]} 11. c3 {[%clk 0:02:40.9]}
11... Ne7 {[%clk 0:02:57]} 12. Ng3 {[%clk 0:02:38.6]} 12... c5 {[%clk
0:02:58.6]} 13. Bh6 {[%clk 0:02:37.4]} 13... cxd4 {[%clk 0:02:33]} 14. cxd4
{[%clk 0:02:37.5]} 14... d5 {[%clk 0:02:31.4]} 15. Bxg7 {[%clk 0:02:37.5]} 15...
Kxg7 {[%clk 0:02:31]} 16. e5 {[%clk 0:02:36.1]} 16... Ne4 {[%clk 0:02:31.3]} 17.
Qf4 {[%clk 0:02:37.8]} 17... f5 {[%clk 0:01:46.7]} 18. h4 {[%clk 0:02:06]} 18...
h6 {[%clk 0:01:25.6]} 19. Ne2 {[%clk 0:01:52]} 19... b5 {[%clk 0:01:19.8]} 20.
a5 {[%clk 0:01:30.6]} 20... Nc6 {[%clk 0:01:16.4]} 21. Qe3 {[%clk 0:01:31.3]}
21... Nxa5 {[%clk 0:01:11.7]} 22. Nf4 {[%clk 0:01:32.1]} 22... Re8 {[%clk
0:01:12.8]} 23. Nh2 {[%clk 0:01:13.8]} 23... Nc4 {[%clk 0:01:11]} 24. Bxc4
{[%clk 0:01:09.6]} 24... dxc4 {[%clk 0:01:11.8]} 25. Nf1 {[%clk 0:01:10.6]}
25... Qe7 {[%clk 0:01:00.9]} 26. O-O-O {[%clk 0:00:56.4]} 26... c3 {[%clk
0:00:52.2]} 27. f3 {[%clk 0:00:49]} 27... Qb4 {[%clk 0:00:45.1]} 28. Qe2 {[%clk
0:00:05.9]} 28... cxb2+ {[%clk 0:00:37.1]} 29. Qxb2 {[%clk 0:00:07.8]} 29...
Rac8+ {[%clk 0:00:37.4]} 0-1

[Event "*** Qualifier 3: Titled Tuesday 3|2 Blitz"]
[Site "Chess.com"]
[Date "2017.04.18"]
[Round "2"]
[White "Abrito99"]
[Black "juniortay"]
[Result "1-0"]
[WhiteElo "2332"]
[BlackElo "2333"]
[TimeControl "180+2"]
[EndTime "13:23:22 PDT"]
[Termination "Abrito99 won by resignation"]

1. e4 {[%clk 0:03:02]} 1... e5 {[%clk 0:03:00.2]} 2. Nf3 {[%clk 0:03:02]} 2...
Nf6 {[%clk 0:03:01.4]} 3. Nxe5 {[%clk 0:03:01.6]} 3... Nc6 {[%clk 0:03:02.7]} 4.
Nxc6 {[%clk 0:03:01.8]} 4... dxc6 {[%clk 0:03:04.6]} 5. d3 {[%clk 0:03:03.1]}
5... Bc5 {[%clk 0:03:05.8]} 6. h3 {[%clk 0:03:02.2]} 6... O-O {[%clk 0:03:05.2]}
7. Nc3 {[%clk 0:02:52.5]} 7... Be6 {[%clk 0:03:03.2]} 8. Be2 {[%clk 0:02:52.6]}
8... Bd4 {[%clk 0:03:03.4]} 9. Be3 {[%clk 0:02:53.3]} 9... c5 {[%clk 0:03:00]}
10. Qd2 {[%clk 0:02:51.1]} 10... Nd7 {[%clk 0:03:01.3]} 11. O-O {[%clk
0:02:48.7]} 11... f5 {[%clk 0:03:02.3]} 12. exf5 {[%clk 0:02:45.8]} 12... Bxf5
{[%clk 0:03:02.7]} 13. Rae1 {[%clk 0:02:34.8]} 13... Qh4 {[%clk 0:03:01.1]} 14.
Bg5 {[%clk 0:02:24.2]} 14... Qg3 {[%clk 0:02:44]} 15. Bf4 {[%clk 0:01:49]} 15...
Qg6 {[%clk 0:02:43.8]} 16. Nd5 {[%clk 0:01:48.9]} 16... Rae8 {[%clk 0:02:39.2]}
17. c3 {[%clk 0:01:48.2]} 17... Bxh3 {[%clk 0:02:39.8]} 18. Bf3 {[%clk
0:01:43.4]} 18... Bf6 {[%clk 0:02:20.3]} 19. Bg3 {[%clk 0:01:34.6]} 19... Bf5
{[%clk 0:02:14.9]} 20. Nf4 {[%clk 0:01:29.3]} 20... Qh6 {[%clk 0:02:11.5]} 21.
Bd5+ {[%clk 0:01:30.4]} 21... Kh8 {[%clk 0:02:08.4]} 22. Bxb7 {[%clk 0:01:30.5]}
22... Ne5 {[%clk 0:02:04.2]} 23. d4 {[%clk 0:01:26.6]} 23... cxd4 {[%clk
0:01:34.1]} 24. cxd4 {[%clk 0:01:28.5]} 24... Ng4 {[%clk 0:01:25.1]} 25. Rxe8
{[%clk 0:01:28.7]} 25... Rxe8 {[%clk 0:01:24.7]} 26. Re1 {[%clk 0:01:30.1]}
26... Rd8 {[%clk 0:01:05.3]} 27. Bf3 {[%clk 0:01:30.7]} 27... c5 {[%clk
0:00:52.5]} 28. Qe2 {[%clk 0:01:24.3]} 28... g6 {[%clk 0:00:39.6]} 29. Bxg4
{[%clk 0:01:22.8]} 29... Bxd4 {[%clk 0:00:39.6]} 30. Qe7 {[%clk 0:01:07]} 30...
Rf8 {[%clk 0:00:32.5]} 31. Bxf5 {[%clk 0:00:54.2]} 31... gxf5 {[%clk 0:00:33.4]}
32. Ne6 {[%clk 0:00:46.4]} 32... Rg8 {[%clk 0:00:34.5]} 33. Nxd4 {[%clk
0:00:45.9]} 1-0

[Event "*** Qualifier 3: Titled Tuesday 3|2 Blitz"]
[Site "Chess.com"]
[Date "2017.04.18"]
[Round "2"]
[White "Wolverine_master"]
[Black "Rogue_King"]
[Result "0-1"]
[WhiteElo "1975"]
[BlackElo "2128"]
[TimeControl "180+2"]
[EndTime "13:23:22 PDT"]
[Termination "Rogue_King won by resignation"]

1. e4 {[%clk 0:03:02]} 1... c6 {[%clk 0:03:01.2]} 2. d4 {[%clk 0:03:02.4]} 2...
d5 {[%clk 0:03:03.1]} 3. exd5 {[%clk 0:03:03.9]} 3... cxd5 {[%clk 0:03:05]} 4.
c4 {[%clk 0:03:05.1]} 4... Nf6 {[%clk 0:03:06.4]} 5. Nc3 {[%clk 0:03:06.6]} 5...
Nc6 {[%clk 0:03:07.4]} 6. Bg5 {[%clk 0:03:03.9]} 6... dxc4 {[%clk 0:03:08.1]} 7.
d5 {[%clk 0:03:01.8]} 7... Ne5 {[%clk 0:03:08.6]} 8. Nf3 {[%clk 0:02:52.5]} 8...
Nxf3+ {[%clk 0:02:22.3]} 9. Qxf3 {[%clk 0:02:52.5]} 9... h6 {[%clk 0:02:23.7]}
10. Bxf6 {[%clk 0:02:46.4]} 10... exf6 {[%clk 0:02:25.6]} 11. Bxc4 {[%clk
0:02:46.8]} 11... Bb4 {[%clk 0:02:10.9]} 12. Bb5+ {[%clk 0:02:27.2]} 12... Bd7
{[%clk 0:01:57]} 13. Bxd7+ {[%clk 0:02:25.6]} 13... Qxd7 {[%clk 0:01:55.7]} 14.
Qe4+ {[%clk 0:02:25]} 14... Qe7 {[%clk 0:01:56.8]} 15. O-O {[%clk 0:02:12.4]}
15... Bxc3 {[%clk 0:01:38.9]} 16. Qxe7+ {[%clk 0:02:12.4]} 16... Kxe7 {[%clk
0:01:40]} 17. bxc3 {[%clk 0:02:14]} 17... Rac8 {[%clk 0:01:40.4]} 18. Rab1
{[%clk 0:02:14.5]} 18... b6 {[%clk 0:01:40.3]} 19. Rb3 {[%clk 0:02:04.5]} 19...
Kd6 {[%clk 0:01:32.5]} 20. Rd1 {[%clk 0:02:02.1]} 20... Rc5 {[%clk 0:01:17.9]}
21. Ra3 {[%clk 0:02:00.5]} 21... a5 {[%clk 0:01:13.2]} 22. Rb3 {[%clk 0:02:01]}
22... Rb8 {[%clk 0:01:13.3]} 23. f3 {[%clk 0:01:31.7]} 23... Rxd5 {[%clk
0:01:11.5]} 24. Rxd5+ {[%clk 0:01:32.6]} 24... Kxd5 {[%clk 0:01:13.4]} 25. Kf2
{[%clk 0:01:33.9]} 25... b5 {[%clk 0:01:07.4]} 26. Ke3 {[%clk 0:01:33.8]} 26...
Kc4 {[%clk 0:01:08.5]} 27. Kd2 {[%clk 0:01:23.4]} 27... Rd8+ {[%clk 0:01:08.9]}
28. Kc2 {[%clk 0:01:23.7]} 28... Re8 {[%clk 0:01:09.6]} 29. Kd2 {[%clk
0:01:24.1]} 29... Rd8+ {[%clk 0:01:06.7]} 30. Kc2 {[%clk 0:01:25]} 30... Rd3
{[%clk 0:00:34.7]} 31. a3 {[%clk 0:00:52.2]} 31... f5 {[%clk 0:00:35.3]} 32. f4
{[%clk 0:00:51]} 32... f6 {[%clk 0:00:34.5]} 33. g3 {[%clk 0:00:36.2]} 33... Rf3
{[%clk 0:00:34.4]} 34. a4 {[%clk 0:00:31.2]} 34... Rf2+ {[%clk 0:00:35.4]} 0-1

[Event "*** Qualifier 3: Titled Tuesday 3|2 Blitz"]
[Site "Chess.com"]
[Date "2017.04.18"]
[Round "2"]
[White "Makalexa"]
[Black "Enzy63"]
[Result "0-1"]
[WhiteElo "2155"]
[BlackElo "2049"]
[TimeControl "180+2"]
[EndTime "13:23:23 PDT"]
[Termination "Enzy63 won by checkmate"]

1. e4 {[%clk 0:03:02]} 1... e5 {[%clk 0:03:00.1]} 2. Nf3 {[%clk 0:03:03]} 2...
Nc6 {[%clk 0:03:01.3]} 3. Bb5 {[%clk 0:03:03.2]} 3... a6 {[%clk 0:03:02.3]} 4.
Ba4 {[%clk 0:03:03.6]} 4... Nf6 {[%clk 0:03:03.5]} 5. O-O {[%clk 0:03:04.1]}
5... Be7 {[%clk 0:03:04.8]} 6. Re1 {[%clk 0:03:03.4]} 6... b5 {[%clk 0:03:05.9]}
7. Bb3 {[%clk 0:03:03.8]} 7... d6 {[%clk 0:03:07.5]} 8. a4 {[%clk 0:03:04.8]}
8... Bd7 {[%clk 0:02:59]} 9. d4 {[%clk 0:02:59.4]} 9... Nxd4 {[%clk 0:02:49.5]}
10. Nxd4 {[%clk 0:02:57.1]} 10... exd4 {[%clk 0:02:51.4]} 11. axb5 {[%clk
0:02:50.8]} 11... axb5 {[%clk 0:02:48.1]} 12. Rxa8 {[%clk 0:02:50.6]} 12... Qxa8
{[%clk 0:02:49.9]} 13. e5 {[%clk 0:02:51.3]} 13... dxe5 {[%clk 0:02:12.3]} 14.
Rxe5 {[%clk 0:02:51.8]} 14... Qd8 {[%clk 0:01:40.2]} 15. Qe1 {[%clk 0:02:35.7]}
15... c5 {[%clk 0:01:27.1]} 16. c4 {[%clk 0:02:11.7]} 16... Be6 {[%clk
0:01:21.5]} 17. Rxe6 {[%clk 0:01:57.6]} 17... fxe6 {[%clk 0:01:20.9]} 18. cxb5
{[%clk 0:01:57.1]} 18... O-O {[%clk 0:01:08.5]} 19. Qxe6+ {[%clk 0:01:57]} 19...
Kh8 {[%clk 0:01:09.6]} 20. Na3 {[%clk 0:01:57.4]} 20... Bd6 {[%clk 0:01:05.2]}
21. Bd2 {[%clk 0:01:19.4]} 21... Re8 {[%clk 0:01:00.6]} 22. Qf7 {[%clk
0:01:17.1]} 22... Ne4 {[%clk 0:00:40.3]} 23. Ba5 {[%clk 0:00:55.1]} 23... Ng5
{[%clk 0:00:25.7]} 24. Qh5 {[%clk 0:00:39.3]} 24... g6 {[%clk 0:00:26.6]} 25. h4
{[%clk 0:00:29.5]} 25... gxh5 {[%clk 0:00:26.3]} 26. Bxd8 {[%clk 0:00:18.7]}
26... Re1# {[%clk 0:00:26.5]} 0-1

[Event "*** Qualifier 3: Titled Tuesday 3|2 Blitz"]
[Site "Chess.com"]
[Date "2017.04.18"]
[Round "2"]
[White "aa175"]
[Black "hsskoo"]
[Result "0-1"]
[WhiteElo "1842"]
[BlackElo "1959"]
[TimeControl "180+2"]
[EndTime "13:23:50 PDT"]
[Termination "hsskoo won on time"]

1. e4 {[%clk 0:03:02]} 1... e5 {[%clk 0:02:58.6]} 2. Nf3 {[%clk 0:03:02.8]} 2...
Nf6 {[%clk 0:02:58.9]} 3. Nc3 {[%clk 0:03:00]} 3... Nc6 {[%clk 0:02:59]} 4. Bc4
{[%clk 0:02:59.6]} 4... Bc5 {[%clk 0:02:59.7]} 5. d3 {[%clk 0:03:00.5]} 5... O-O
{[%clk 0:03:00.1]} 6. O-O {[%clk 0:02:56.6]} 6... h6 {[%clk 0:02:59.6]} 7. h3
{[%clk 0:02:57.2]} 7... d6 {[%clk 0:02:56]} 8. a3 {[%clk 0:02:54.9]} 8... a6
{[%clk 0:02:55.8]} 9. Be3 {[%clk 0:02:51]} 9... Ba7 {[%clk 0:02:50.7]} 10. b4
{[%clk 0:02:33.3]} 10... Be6 {[%clk 0:02:45.8]} 11. Nd5 {[%clk 0:02:30.1]} 11...
Bxd5 {[%clk 0:02:42.9]} 12. Bxd5 {[%clk 0:02:25.2]} 12... Nxd5 {[%clk
0:02:42.2]} 13. exd5 {[%clk 0:02:26]} 13... Ne7 {[%clk 0:02:42.8]} 14. Bxa7
{[%clk 0:02:24.5]} 14... Rxa7 {[%clk 0:02:43]} 15. c4 {[%clk 0:02:26.4]} 15...
Ng6 {[%clk 0:02:40.2]} 16. Nd2 {[%clk 0:02:23.7]} 16... Nf4 {[%clk 0:02:37.6]}
17. Nb3 {[%clk 0:02:14]} 17... Qg5 {[%clk 0:02:35.6]} 18. Qf3 {[%clk 0:02:08]}
18... f5 {[%clk 0:02:35.3]} 19. Kh2 {[%clk 0:01:44.4]} 19... Qh4 {[%clk
0:02:30.6]} 20. c5 {[%clk 0:01:28.5]} 20... Rf6 {[%clk 0:02:29.8]} 21. Rg1
{[%clk 0:01:19.2]} 21... Ra8 {[%clk 0:02:29.8]} 22. Rad1 {[%clk 0:01:15.5]}
22... Raf8 {[%clk 0:02:29.5]} 23. Qg3 {[%clk 0:00:12.5]} 23... Qh5 {[%clk
0:02:25.7]} 24. Qf3 {[%clk 0:00:10.1]} 24... Qg5 {[%clk 0:02:21.4]} 25. Qg3
{[%clk 0:00:08.7]} 25... Qh5 {[%clk 0:02:21.4]} 26. Qf3 {[%clk 0:00:09.6]} 26...
Qf7 {[%clk 0:02:18.7]} 27. d4 {[%clk 0:00:05.2]} 27... Ng6 {[%clk 0:02:13.4]}
28. cxd6 {[%clk 0:00:02.5]} 28... cxd6 {[%clk 0:02:13.2]} 29. dxe5 {[%clk
0:00:03.7]} 29... Nxe5 {[%clk 0:02:13.2]} 30. Qc3 {[%clk 0:00:05.2]} 30... f4
{[%clk 0:02:12.5]} 31. f3 {[%clk 0:00:06]} 31... Rg6 {[%clk 0:02:11.1]} 32. Rge1
{[%clk 0:00:06.4]} 32... Qf5 {[%clk 0:02:08.5]} 33. Nd4 {[%clk 0:00:07]} 33...
Qg5 {[%clk 0:02:08.6]} 34. Rd2 {[%clk 0:00:07.6]} 34... Qg3+ {[%clk 0:02:08.2]}
35. Kh1 {[%clk 0:00:08.2]} 35... Qxe1+ {[%clk 0:02:09.8]} 36. Kh2 {[%clk
0:00:08.7]} 36... Qg3+ {[%clk 0:02:08.8]} 37. Kh1 {[%clk 0:00:08.7]} 37... Re8
{[%clk 0:02:03.4]} 38. Qb3 {[%clk 0:00:05.5]} 38... Kh7 {[%clk 0:02:02.2]} 39.
Qc3 {[%clk 0:00:06.2]} 39... Rf8 {[%clk 0:01:57.4]} 40. Rc2 {[%clk 0:00:02.7]}
40... Rg5 {[%clk 0:01:53.9]} 41. Rd2 {[%clk 0:00:03.3]} 41... Rh5 {[%clk
0:01:52.8]} 42. Qc2+ {[%clk 0:00:03.1]} 42... Kh8 {[%clk 0:01:50.8]} 0-1

[Event "*** Qualifier 3: Titled Tuesday 3|2 Blitz"]
[Site "Chess.com"]
[Date "2017.04.18"]
[Round "2"]
[White "pedromartinez91"]
[Black "Gulkov_Igor"]
[Result "1-0"]
[WhiteElo "2334"]
[BlackElo "2319"]
[TimeControl "180+2"]
[EndTime "13:23:52 PDT"]
[Termination "pedromartinez91 won by resignation"]

1. d4 {[%clk 0:03:02]} 1... Nf6 {[%clk 0:03:00.3]} 2. Nf3 {[%clk 0:03:01.3]}
2... g6 {[%clk 0:03:01.6]} 3. Bf4 {[%clk 0:03:01.6]} 3... Bg7 {[%clk 0:03:02.8]}
4. e3 {[%clk 0:03:01.8]} 4... d6 {[%clk 0:03:03.9]} 5. h3 {[%clk 0:03:02.5]}
5... O-O {[%clk 0:03:04.9]} 6. Be2 {[%clk 0:03:02.4]} 6... c5 {[%clk 0:03:06]}
7. c3 {[%clk 0:03:02.5]} 7... b6 {[%clk 0:03:06.8]} 8. a4 {[%clk 0:03:01.9]}
8... Ba6 {[%clk 0:03:07.7]} 9. Bxa6 {[%clk 0:02:56.4]} 9... Nxa6 {[%clk
0:03:08.3]} 10. O-O {[%clk 0:02:57]} 10... Qc8 {[%clk 0:03:08.8]} 11. Nbd2
{[%clk 0:02:55.7]} 11... Qb7 {[%clk 0:03:09.7]} 12. Qe2 {[%clk 0:02:55.6]} 12...
Rac8 {[%clk 0:03:01.3]} 13. Bh2 {[%clk 0:02:53.5]} 13... Nc7 {[%clk 0:02:58.7]}
14. Rfe1 {[%clk 0:02:52.7]} 14... Ne6 {[%clk 0:02:58.5]} 15. Qd3 {[%clk
0:02:48.6]} 15... d5 {[%clk 0:02:55.8]} 16. Ne5 {[%clk 0:02:42.3]} 16... Ne4
{[%clk 0:02:46.3]} 17. Nxe4 {[%clk 0:02:40.5]} 17... dxe4 {[%clk 0:02:46.9]} 18.
Qb5 {[%clk 0:02:29.5]} 18... f6 {[%clk 0:02:38.9]} 19. Nc4 {[%clk 0:02:20.3]}
19... Rfd8 {[%clk 0:02:19.9]} 20. Qb3 {[%clk 0:02:02]} 20... Qd5 {[%clk
0:02:15.4]} 21. Nd2 {[%clk 0:02:02.5]} 21... Qxb3 {[%clk 0:02:05.5]} 22. Nxb3
{[%clk 0:02:03.2]} 22... f5 {[%clk 0:02:03.7]} 23. Rad1 {[%clk 0:01:48.6]} 23...
cxd4 {[%clk 0:02:02.3]} 24. exd4 {[%clk 0:01:44.3]} 24... Rc4 {[%clk 0:02:03]}
25. Ra1 {[%clk 0:01:37.7]} 25... a6 {[%clk 0:02:01.7]} 26. f3 {[%clk 0:01:35.8]}
26... Bh6 {[%clk 0:00:58.5]} 27. fxe4 {[%clk 0:01:34.4]} 27... f4 {[%clk
0:00:59.7]} 28. Nd2 {[%clk 0:01:18.1]} 28... Rcc8 {[%clk 0:00:59.7]} 29. Nf3
{[%clk 0:01:18.6]} 29... g5 {[%clk 0:00:59.3]} 30. g3 {[%clk 0:01:12.7]} 30...
Rf8 {[%clk 0:00:36.4]} 31. gxf4 {[%clk 0:01:13.3]} 31... Nxf4 {[%clk 0:00:37.1]}
32. Bxf4 {[%clk 0:00:57.9]} 32... Rxf4 {[%clk 0:00:37.2]} 33. Ne5 {[%clk
0:00:57.1]} 33... Bg7 {[%clk 0:00:33.6]} 34. Nd7 {[%clk 0:00:52.8]} 34... Rc6
{[%clk 0:00:28.4]} 35. e5 {[%clk 0:00:49.5]} 35... Rh6 {[%clk 0:00:25.3]} 36.
Re3 {[%clk 0:00:42]} 36... g4 {[%clk 0:00:25.6]} 37. Kg2 {[%clk 0:00:37.5]} 1-0

[Event "*** Qualifier 3: Titled Tuesday 3|2 Blitz"]
[Site "Chess.com"]
[Date "2017.04.18"]
[Round "2"]
[White "Izoria123"]
[Black "Bugcrusher"]
[Result "1-0"]
[WhiteElo "2640"]
[BlackElo "2505"]
[TimeControl "180+2"]
[EndTime "13:24:05 PDT"]
[Termination "Izoria123 won by resignation"]

1. Nf3 {[%clk 0:03:02]} 1... Nf6 {[%clk 0:03:00]} 2. c4 {[%clk 0:03:00.8]} 2...
e6 {[%clk 0:03:01]} 3. g3 {[%clk 0:03:01.2]} 3... b6 {[%clk 0:03:00.2]} 4. Bg2
{[%clk 0:03:01.4]} 4... Bb7 {[%clk 0:03:00.8]} 5. O-O {[%clk 0:03:02.9]} 5... c5
{[%clk 0:03:01.4]} 6. Nc3 {[%clk 0:03:03.9]} 6... Be7 {[%clk 0:03:02.1]} 7. d4
{[%clk 0:03:02]} 7... cxd4 {[%clk 0:03:03]} 8. Qxd4 {[%clk 0:03:03.9]} 8... d6
{[%clk 0:03:02.7]} 9. Bg5 {[%clk 0:03:04]} 9... a6 {[%clk 0:02:58.3]} 10. Bxf6
{[%clk 0:03:05]} 10... Bxf6 {[%clk 0:02:59.3]} 11. Qf4 {[%clk 0:03:06.5]} 11...
Be7 {[%clk 0:02:55.2]} 12. Rfd1 {[%clk 0:03:04.4]} 12... O-O {[%clk 0:02:51.4]}
13. Ne4 {[%clk 0:03:04]} 13... Bxe4 {[%clk 0:02:50.9]} 14. Qxe4 {[%clk
0:03:05.9]} 14... Ra7 {[%clk 0:02:51.6]} 15. Nd4 {[%clk 0:03:06.9]} 15... Qc8
{[%clk 0:02:47.4]} 16. b3 {[%clk 0:03:06.9]} 16... g6 {[%clk 0:02:37.9]} 17. a4
{[%clk 0:03:03.4]} 17... Bf6 {[%clk 0:02:34.3]} 18. Ra2 {[%clk 0:03:03.2]} 18...
Rd8 {[%clk 0:02:30.4]} 19. e3 {[%clk 0:02:53.4]} 19... Rc7 {[%clk 0:02:21.9]}
20. Qb1 {[%clk 0:02:41.4]} 20... Rc5 {[%clk 0:02:19]} 21. h4 {[%clk 0:02:38.5]}
21... Nd7 {[%clk 0:02:07.2]} 22. Rad2 {[%clk 0:02:30.5]} 22... Qc7 {[%clk
0:01:40.8]} 23. Qa2 {[%clk 0:02:29]} 23... Bg7 {[%clk 0:01:29.5]} 24. Nc2 {[%clk
0:02:22.8]} 24... Ne5 {[%clk 0:01:23.2]} 25. Nb4 {[%clk 0:02:18.7]} 25... a5
{[%clk 0:01:14.5]} 26. Na6 {[%clk 0:02:17.2]} 26... Qc8 {[%clk 0:01:15.8]} 27.
Nxc5 {[%clk 0:02:17.8]} 27... Qxc5 {[%clk 0:01:17.4]} 28. Qb1 {[%clk 0:02:15.5]}
28... h5 {[%clk 0:01:17.7]} 29. Qe4 {[%clk 0:02:09.1]} 29... Ng4 {[%clk
0:01:15.2]} 30. Qc6 {[%clk 0:02:06.6]} 30... Qb4 {[%clk 0:01:10.9]} 31. Qb5
{[%clk 0:01:29.5]} 31... Qc3 {[%clk 0:01:06.5]} 32. Bf3 {[%clk 0:01:28.3]} 32...
Ne5 {[%clk 0:01:03.1]} 33. Be2 {[%clk 0:01:28.2]} 33... g5 {[%clk 0:00:39.2]}
34. Qxb6 {[%clk 0:01:26.8]} 34... Bf6 {[%clk 0:00:40.5]} 35. hxg5 {[%clk
0:01:23.1]} 35... Bxg5 {[%clk 0:00:37]} 36. Qd4 {[%clk 0:01:16.6]} 36... Qb4
{[%clk 0:00:29.4]} 37. c5 {[%clk 0:01:12.2]} 37... Qb8 {[%clk 0:00:17.4]} 38.
cxd6 {[%clk 0:01:06]} 38... Bf6 {[%clk 0:00:18.7]} 39. Qe4 {[%clk 0:01:05.5]}
39... Qxb3 {[%clk 0:00:17.7]} 40. Bxh5 {[%clk 0:01:03.7]} 40... Bg7 {[%clk
0:00:14]} 41. Be2 {[%clk 0:01:03.7]} 41... Qb6 {[%clk 0:00:13.9]} 42. d7 {[%clk
0:01:03.3]} 42... Qc7 {[%clk 0:00:14.7]} 43. Rc2 {[%clk 0:01:04]} 43... Qa7
{[%clk 0:00:15.2]} 44. Bb5 {[%clk 0:01:03.9]} 44... Ng6 {[%clk 0:00:14.8]} 45.
Rc8 {[%clk 0:01:04.1]} 1-0

[Event "*** Qualifier 3: Titled Tuesday 3|2 Blitz"]
[Site "Chess.com"]
[Date "2017.04.18"]
[Round "2"]
[White "superjem123"]
[Black "Sanan_Sjugirov"]
[Result "1-0"]
[WhiteElo "2528"]
[BlackElo "2656"]
[TimeControl "180+2"]
[EndTime "13:24:17 PDT"]
[Termination "superjem123 won on time"]

1. c4 {[%clk 0:03:02]} 1... Nf6 {[%clk 0:02:59.2]} 2. g3 {[%clk 0:03:02.8]} 2...
e6 {[%clk 0:02:58.8]} 3. Nf3 {[%clk 0:03:03.2]} 3... d5 {[%clk 0:02:59.9]} 4. d4
{[%clk 0:03:03.8]} 4... Bb4+ {[%clk 0:02:59.7]} 5. Bd2 {[%clk 0:03:03.8]} 5...
Be7 {[%clk 0:03:00.7]} 6. Bg2 {[%clk 0:03:04.2]} 6... O-O {[%clk 0:03:01.6]} 7.
O-O {[%clk 0:02:56.3]} 7... c6 {[%clk 0:03:02.6]} 8. b3 {[%clk 0:02:56.5]} 8...
b6 {[%clk 0:02:48.4]} 9. Bc3 {[%clk 0:02:55.1]} 9... a5 {[%clk 0:02:35]} 10.
Nbd2 {[%clk 0:02:55.9]} 10... Ba6 {[%clk 0:02:29]} 11. Qc2 {[%clk 0:02:56.1]}
11... Nbd7 {[%clk 0:02:17.8]} 12. e4 {[%clk 0:02:56.5]} 12... b5 {[%clk
0:02:14.9]} 13. e5 {[%clk 0:02:37.7]} 13... Ne8 {[%clk 0:02:14.8]} 14. Rfc1
{[%clk 0:02:38.5]} 14... b4 {[%clk 0:01:45.2]} 15. Bb2 {[%clk 0:02:39.2]} 15...
Rc8 {[%clk 0:01:46.2]} 16. a3 {[%clk 0:02:35.2]} 16... Nc7 {[%clk 0:01:32.9]}
17. Nf1 {[%clk 0:02:20.1]} 17... bxa3 {[%clk 0:01:22.6]} 18. Bxa3 {[%clk
0:02:20.6]} 18... c5 {[%clk 0:01:23.9]} 19. dxc5 {[%clk 0:02:01.5]} 19... Nxc5
{[%clk 0:01:08.8]} 20. Bxc5 {[%clk 0:02:03.4]} 20... Bxc5 {[%clk 0:01:09.1]} 21.
Rxa5 {[%clk 0:02:04.8]} 21... Bb6 {[%clk 0:01:07.7]} 22. Ra4 {[%clk 0:02:00.9]}
22... dxc4 {[%clk 0:01:05.4]} 23. bxc4 {[%clk 0:02:02.8]} 23... Qe7 {[%clk
0:00:58.2]} 24. c5 {[%clk 0:01:54.8]} 24... Ba7 {[%clk 0:00:37.7]} 25. Nd4
{[%clk 0:01:40.7]} 25... Bxf1 {[%clk 0:00:29.5]} 26. Nc6 {[%clk 0:01:36.6]}
26... Qd7 {[%clk 0:00:17.3]} 27. Rxf1 {[%clk 0:00:45.5]} 27... Bb8 {[%clk
0:00:18.3]} 28. Rd1 {[%clk 0:00:36]} 28... Nd5 {[%clk 0:00:18.9]} 29. Nxb8
{[%clk 0:00:29.1]} 29... Rxb8 {[%clk 0:00:19.3]} 30. c6 {[%clk 0:00:30.4]} 30...
Qc8 {[%clk 0:00:12]} 31. Bxd5 {[%clk 0:00:31]} 31... exd5 {[%clk 0:00:13.4]} 32.
Rxd5 {[%clk 0:00:32]} 32... g6 {[%clk 0:00:08.6]} 33. c7 {[%clk 0:00:32.6]}
33... Rb7 {[%clk 0:00:09.6]} 34. Rc4 {[%clk 0:00:34.1]} 34... Ra7 {[%clk
0:00:10.5]} 35. h4 {[%clk 0:00:31.2]} 35... Re8 {[%clk 0:00:09.8]} 36. Rd8
{[%clk 0:00:28.8]} 36... Ra1+ {[%clk 0:00:07.7]} 37. Kh2 {[%clk 0:00:28.8]} 1-0